[Event "SWE-ch -50 2018"]
[Site "Ronneby"]
[Date "2018.06.30"]
[Round "1"]
[White "Cramling, Dan"]
[Black "Franzen, Per Erik"]
[Result "1/2-1/2"]
[ECO "E45"]
[WhiteElo "2355"]
[BlackElo "1970"]
[Annotator "NA"]
[PlyCount "53"]
[EventDate "2018.06.30"]
[EventType "tourn"]
[EventCountry "SWE"]
[SourceTitle "playchess.com"]
[Source "ChessBase"]
[SourceQuality "1"]
[TimeControl "40/5400+30:1800+30"]

1. d4 {[%emt 0:00:11]} Nf6 {[%emt 0:00:51]} 2. c4 {[%emt 0:00:20]} e6 {[%emt 0:00:09]} 3. Nc3 {[%emt 0:00:09]} Bb4 {[%emt 0:00:42]} 4. e3 {[%emt 0:00:42]} b6 {[%emt 0:00:19]} 5. Nge2 {[%emt 0:01:09]} Ba6 {[%emt 0:00:21]} 6. Ng3 {[%emt 0:02:54]} c5 {[%emt 0:10:04]} 7. Bd2 {[%emt 0:13:16]} cxd4 {[%emt 0:09:55]} 8. exd4 {[%emt 0:00:21]} O-O {[%emt 0:04:03]} 9. a3 {[%emt 0:05:07]} Bxc3 {[%emt 0:04:17]} 10. Bxc3 {[%emt 0:00:13]} d5 {[%emt 0:02:47]} 11. c5 {[%emt 0:08:55]} Bxf1 {[%emt 0:01:21]} 12. Kxf1 {[%emt 0:00:22]} Nc6 {[%emt 0:17:41]} 13. b4 {[%emt 0:05:24]} bxc5 {[%emt 0:00:25]} 14. dxc5 {[%emt 0:00:13]} d4 {[%emt 0:06:06]} 15. Bb2 {[%emt 0:01:28]} Qd5 {[%emt 0:02:07]} 16. f3 {[%emt 0:13:19]} a5 {[%emt 0:14:47]} 17. b5 {[%emt 0:01:26]} Qc4+ {[%emt 0:00:29]} 18. Qe2 {[%emt 0:00:51]} d3 {[%emt 0:01:47]} 19. Qd2 {[%emt 0:01:20]} Qxb5 {[%emt 0:06:44]} 20. Bxf6 {[%emt 0:07:12]} gxf6 {[%emt 0:01:52]} 21. Ne4 {[%emt 0:09:17]} Kg7 {[%emt 0:07:59]} 22. Qc3 {[%emt 0:05:20]} d2+ {[%emt 0:01:55]} 23. Kf2 {[%emt 0:00:25]} Ne5 {[%emt 0:00:42]} 24. f4 {[%emt 0:03:57]} Qd3 {[%emt 0:01:55]} 25. fxe5 {[%emt 0:13:53]} Qxe4 {[%emt 0:00:10]} 26. exf6+ {[%emt 0:02:25]} Kh8 {[%emt 0:00:09]} 27. Rhd1 {[%emt 0:02:07]} 1/2-1/2

[Event "SWE-ch -50 2018"]
[Site "Ronneby"]
[Date "2018.06.30"]
[Round "1"]
[White "Nilsson, Patrik"]
[Black "Rothen, Hakan Nils Karl"]
[Result "0-1"]
[ECO "C03"]
[WhiteElo "2152"]
[BlackElo "2291"]
[Annotator "NA"]
[PlyCount "98"]
[EventDate "2018.06.30"]
[EventType "tourn"]
[EventCountry "SWE"]
[SourceTitle "playchess.com"]
[Source "ChessBase"]
[SourceQuality "1"]
[TimeControl "40/5400+30:1800+30"]

1. e4 {[%emt 0:00:00]} e6 {[%emt 0:00:09]} 2. d4 {[%emt 0:00:00]} d5 {[%emt 0:00:05]} 3. Nd2 {[%emt 0:00:00]} Be7 {[%emt 0:00:05]} 4. Ngf3 {[%emt 0:00:45]} Nf6 {[%emt 0:01:36]} 5. e5 {[%emt 0:00:25]} Nfd7 {[%emt 0:00:24]} 6. Bd3 {[%emt 0:00:31]} c5 {[%emt 0:00:53]} 7. c3 {[%emt 0:00:33]} b6 {[%emt 0:02:44]} 8. Qe2 {[%emt 0:02:51]} Bb7 {[%emt 0:04:30]} 9. Nf1 {[%emt 0:05:18]} Nc6 {[%emt 0:02:48]} 10. Ng3 {[%emt 0:01:42]} cxd4 {[%emt 0:01:41]} 11. cxd4 {[%emt 0:01:33]} Nb4 {[%emt 0:01:12]} 12. O-O {[%emt 0:14:49]} Nxd3 {[%emt 0:00:20]} 13. Qxd3 {[%emt 0:00:10]} a5 {[%emt 0:00:57]} 14. Re1 {[%emt 0:03:06]} Ba6 {[%emt 0:00:25]} 15. Qe3 {[%emt 0:01:05]} h5 {[%emt 0:08:05]} 16. Bd2 {[%emt 0:05:12]} Nf8 {[%emt 0:09:39]} 17. Rac1 {[%emt 0:03:20]} Ng6 {[%emt 0:01:12]} 18. a3 {[%emt 0:04:16]} a4 {[%emt 0:03:49]} 19. Rc3 {[%emt 0:02:51]} Bc4 {[%emt 0:00:57]} 20. Ne2 {[%emt 0:04:09]} b5 {[%emt 0:02:20]} 21. Rcc1 {[%emt 0:03:01]} h4 {[%emt 0:01:24]} 22. Nf4 {[%emt 0:01:51]} Nxf4 {[%emt 0:02:11]} 23. Qxf4 {[%emt 0:00:09]} Rh5 {[%emt 0:00:24]} 24. h3 {[%emt 0:06:19]} g6 {[%emt 0:02:13]} 25. Qe3 {[%emt 0:03:03]} Kf8 {[%emt 0:06:19]} 26. Nh2 {[%emt 0:05:02]} Kg7 {[%emt 0:01:41]} 27. Ng4 {[%emt 0:00:49]} Qf8 {[%emt 0:04:27]} 28. Qf3 {[%emt 0:04:36]} Qh8 {[%emt 0:04:17]} 29. Qc3 {[%emt 0:04:26]} Rb8 {[%emt 0:04:22]} 30. Qa5 {[%emt 0:01:05]} Bd8 {[%emt 0:03:54]} 31. Qa7 {[%emt 0:02:24]} Bb6 {[%emt 0:00:46]} 32. Qe7 {[%emt 0:01:20]} Bxd4 {[%emt 0:04:52]} 33. Bg5 {[%emt 0:01:48]} Rxg5 {[%emt 0:00:43]} 34. Qxg5 {[%emt 0:02:05]} Bxb2 {[%emt 0:00:22]} 35. Rcd1 {[%emt 0:02:02]} Bxa3 {[%emt 0:01:15]} 36. Re3 {[%emt 0:01:48]} Bc5 {[%emt 0:04:54]} 37. Rf3 {[%emt 0:00:38]} Rf8 {[%emt 0:00:28]} 38. Rf4 {[%emt 0:01:49]} Qh5 {[%emt 0:11:18]} 39. Qf6+ {[%emt 0:02:24]} Kg8 {[%emt 0:00:13]} 40. Re1 {[%emt 0:03:42]} a3 {[%emt 0:03:49]} 41. Ne3 {[%emt 0:35:04]} Qh8 {[%emt 0:31:10]} 42. Qg5 {[%emt 0:00:00]} Bxe3 {[%emt 0:00:00]} 43. fxe3 {[%emt 0:00:00]} a2 {[%emt 0:00:00]} 44. Rxh4 {[%emt 0:00:00]} Qg7 {[%emt 0:00:00]} 45. Rf4 {[%emt 0:00:00]} b4 {[%emt 0:00:00]} 46. Rf2 {[%emt 0:00:00]} b3 {[%emt 0:00:00]} 47. Qf4 {[%emt 0:00:00]} f6 {[%emt 0:00:00]} 48. exf6 {[%emt 0:00:00]} Qxf6 {[%emt 0:00:00]} 49. Qxf6 {[%emt 0:00:00]} Rxf6 {[%emt 0:00:00]} 0-1

[Event "SWE-ch -50 2018"]
[Site "Ronneby"]
[Date "2018.06.30"]
[Round "1"]
[White "Gamback, Bjorn"]
[Black "Andersson, Kjell Ake"]
[Result "1-0"]
[ECO "C02"]
[WhiteElo "2108"]
[BlackElo "1912"]
[Annotator "NA"]
[PlyCount "39"]
[EventDate "2018.06.30"]
[EventType "tourn"]
[EventCountry "SWE"]
[SourceTitle "playchess.com"]
[Source "ChessBase"]
[SourceQuality "1"]
[TimeControl "40/5400+30:1800+30"]

1. e4 {[%emt 0:03:31]} e6 {[%emt 0:00:45]} 2. d4 {[%emt 0:00:12]} d5 {[%emt 0:00:33]} 3. e5 {[%emt 0:00:05]} b6 {[%emt 0:02:22]} 4. Nf3 {[%emt 0:00:49]} Ba6 {[%emt 0:00:47]} 5. Bxa6 {[%emt 0:00:34]} Nxa6 {[%emt 0:00:06]} 6. O-O {[%emt 0:00:41]} Ne7 {[%emt 0:01:25]} 7. c4 {[%emt 0:01:48]} Qd7 {[%emt 0:04:32]} 8. Qe2 {[%emt 0:12:20]} Nb8 {[%emt 0:05:08]} 9. b3 {[%emt 0:05:02]} Ng6 {[%emt 0:01:23]} 10. Re1 {[%emt 0:09:40]} Bb4 {[%emt 0:03:03]} 11. Bd2 {[%emt 0:02:53]} Bxd2 {[%emt 0:02:22]} 12. Qxd2 {[%emt 0:00:51]} O-O {[%emt 0:03:54]} 13. Nc3 {[%emt 0:00:46]} Ne7 {[%emt 0:03:32]} 14. Rad1 {[%emt 0:05:15]} Nbc6 {[%emt 0:06:01]} 15. cxd5 {[%emt 0:17:57]} Nxd5 {[%emt 0:00:50]} 16. Ne4 {[%emt 0:00:34]} Kh8 {[%emt 0:07:18]} 17. Qg5 {[%emt 0:05:12]} Qe7 {[%emt 0:09:20]} 18. Qg4 {[%emt 0:04:22]} Rad8 {[%emt 0:08:11]} 19. Rd2 {[%emt 0:08:19]} Qb4 {[%emt 0:07:43]} 20. Rc1 {[%emt 0:02:36]} 1-0

[Event "SWE-ch -50 2018"]
[Site "Ronneby"]
[Date "2018.06.30"]
[Round "1"]
[White "Kvisth, Bengt"]
[Black "Moborn, Anders"]
[Result "1/2-1/2"]
[ECO "D10"]
[WhiteElo "1788"]
[BlackElo "2045"]
[Annotator "NA"]
[PlyCount "43"]
[EventDate "2018.06.30"]
[EventType "tourn"]
[EventCountry "SWE"]
[SourceTitle "playchess.com"]
[Source "ChessBase"]
[SourceQuality "1"]
[TimeControl "40/5400+30:1800+30"]

1. d4 {[%emt 0:00:00]} d5 {[%emt 0:00:00]} 2. c4 {[%emt 0:00:00]} c6 {[%emt 0:00:15]} 3. cxd5 {[%emt 0:00:22]} cxd5 {[%emt 0:00:25]} 4. Nc3 {[%emt 0:00:38]} Nf6 {[%emt 0:01:39]} 5. Bf4 {[%emt 0:01:16]} e6 {[%emt 0:07:39]} 6. Nf3 {[%emt 0:02:41]} Bd6 {[%emt 0:02:33]} 7. Bxd6 {[%emt 0:05:07]} Qxd6 {[%emt 0:00:16]} 8. e3 {[%emt 0:01:18]} O-O {[%emt 0:00:21]} 9. Bd3 {[%emt 0:02:59]} Nc6 {[%emt 0:03:24]} 10. O-O {[%emt 0:07:00]} a6 {[%emt 0:08:26]} 11. Rc1 {[%emt 0:10:59]} b5 {[%emt 0:01:35]} 12. Qd2 {[%emt 0:10:33]} Bb7 {[%emt 0:00:48]} 13. Bb1 {[%emt 0:03:31]} Rac8 {[%emt 0:01:31]} 14. Ne1 {[%emt 0:04:55]} g6 {[%emt 0:03:34]} 15. Nd3 {[%emt 0:02:36]} Nd7 {[%emt 0:00:57]} 16. f4 {[%emt 0:03:15]} f6 {[%emt 0:01:06]} 17. Qe2 {[%emt 0:06:13]} Nb4 {[%emt 0:02:15]} 18. Nxb4 {[%emt 0:06:34]} Qxb4 {[%emt 0:00:08]} 19. a3 {[%emt 0:01:22]} Qd6 {[%emt 0:00:40]} 20. Qg4 {[%emt 0:02:08]} Nb6 {[%emt 0:00:36]} 21. Bxg6 {[%emt 0:02:59]} f5 {[%emt 0:02:45]} 22. Bxf5+ {[%emt 0:02:41]} 1/2-1/2

[Event "SWE-ch -50 2018"]
[Site "Ronneby"]
[Date "2018.07.01"]
[Round "2"]
[White "Rothen, Hakan Nils Karl"]
[Black "Gemzell, Ted"]
[Result "1-0"]
[ECO "D15"]
[WhiteElo "2291"]
[BlackElo "1990"]
[Annotator "NA"]
[PlyCount "107"]
[EventDate "2018.06.30"]
[EventType "tourn"]
[EventCountry "SWE"]
[SourceTitle "playchess.com"]
[Source "ChessBase"]
[SourceQuality "1"]
[TimeControl "40/5400+30:1800+30"]

{[%evp 12,68,131,62,58,36,39,11,12,7,32767,68,58,60,57,34,44,32,43,26,29,17,62,77,90,61,69,65,80,82,98,68,87,48,58,45,89,81,75,69,81,79,75,94,75,83,79,77,98,77,91,77,32767,32767,32767,141,32767,132,147]} 1. d4 {[%emt 0:00:00]} d5 {[%emt 0:00:00]} 2. c4 {[%emt 0:00:14]} c6 {[%emt 0:00:16]} 3. Nf3 {[%emt 0:00:17]} Nf6 {[%emt 0:00:24]} 4. Nc3 {[%emt 0:00:24]} Bf5 {[%emt 0:01:13]} 5. Qb3 {[%emt 0:02:26]} b6 {[%emt 0:03:39]} 6. cxd5 {[%emt 0:04:02] D15: Slav Defence: 4 Nc3 a6 and gambit lines after 4 Nc3 dxc4} Nxd5 {[%emt 0:02:09]} 7. Nxd5 {[%emt 0:03:48]} (7. e4 $16 Nxc3 8. exf5 Ne4 9. Bf4 Nd6 10. Rc1 g6 11. Ne5 Bg7 12. fxg6 hxg6 13. Bd3 e6 {1-0 (26) Hillarp Persson,T (2503)-Belzo,K (2059) St Clement Bay 2017}) 7... Qxd5 {[%emt 0:02:47]} 8. Qxd5 {[%emt 0:01:17]} cxd5 {[%emt 0:00:03]} 9. e3 {[%emt 0:06:51]} f6 $146 {[%emt 0:01:52]} ({Predecessor:} 9... a6 10. Bd2 Nd7 11. Rc1 e6 12. Be2 Bd6 13. O-O Ke7 {1-0 (34) Mungunzul,B (1564)-Lim,D (1556) Ulaanbaatar 2015}) 10. Bd2 {[%emt 0:00:58]} Nd7 {[%emt 0:03:32]} 11. Ba6 {[%emt 0:03:15]} e6 {[%emt 0:04:10]} 12. O-O {[%emt 0:00:12]} Bd6 {[%emt 0:00:31]} 13. Rfc1 {[%emt 0:00:56]} Rd8 {[%emt 0:01:28]} 14. a4 {[%emt 0:05:27]} Nb8 {[%emt 0:13:00]} 15. Bb5+ {[%emt 0:01:42]} Ke7 {[%emt 0:04:41]} 16. Be2 {[%emt 0:01:50]} a6 {[%emt 0:09:05]} 17. Nh4 {[%emt 0:01:27]} Bg6 {[%emt 0:00:23]} 18. Nxg6+ {[%emt 0:03:19]} hxg6 {[%emt 0:00:26]} 19. g3 {[%emt 0:03:05]} Rc8 {[%emt 0:01:17]} 20. Bd3 {[%emt 0:02:11]} f5 {[%emt 0:02:18]} 21. f3 {[%emt 0:04:25]} Kd7 {[%emt 0:02:33]} 22. e4 {[%emt 0:01:30]} Rxc1+ {[%emt 0:03:11]} 23. Rxc1 {[%emt 0:00:16]} Rc8 {[%emt 0:00:37]} 24. Rxc8 {[%emt 0:05:05]} Kxc8 {[%emt 0:00:12]} 25. exd5 {[%emt 0:00:28]} exd5 {[%emt 0:00:15]} 26. g4 {[%emt 0:00:34]} Kc7 {[%emt 0:04:57]} 27. gxf5 {[%emt 0:00:22]} gxf5 {[%emt 0:00:06]} 28. Bxf5 {[%emt 0:00:39]} Nc6 {[%emt 0:00:42]} 29. Be6 {[%emt 0:04:05]} Nxd4 {[%emt 0:01:00]} 30. Bxd5 {[%emt 0:00:12]} Be5 {[%emt 0:00:24]} 31. Kf2 {[%emt 0:04:07]} b5 {[%emt 0:08:11]} 32. f4 {[%emt 0:00:57]} Bf6 {[%emt 0:00:34]} 33. b3 {[%emt 0:03:35]} Kd6 {[%emt 0:01:20]} 34. Bf7 {[%emt 0:00:43]} bxa4 $16 {[%emt 0:11:50]} 35. Bb4+ {[%emt 0:03:09]} Kc6 {[%emt 0:01:34]} 36. bxa4 {[%emt 0:00:09]} Nc2 {[%emt 0:01:48]} 37. Ba5 {[%emt 0:02:03]} Kc5 {[%emt 0:01:10]} 38. Ke2 {[%emt 0:01:09]} g5 {[%emt 0:03:31]} 39. Kd3 {[%emt 0:01:31]} Nb4+ {[%emt 0:06:36]} 40. Ke4 {[%emt 0:01:36]} gxf4 {[%emt 0:04:26]} 41. Kxf4 {[%emt 0:31:37]} Nc6 {[%emt 0:30:57]} 42. Bc7 {[%emt 0:00:21]} Ne7 {[%emt 0:00:00]} 43. Be5 {[%emt 0:00:00]} Bh4 {[%emt 0:00:00]} 44. Kg4 {[%emt 0:00:00]} Be1 {[%emt 0:00:00]} 45. h4 {[%emt 0:00:00]} Nd5 {[%emt 0:00:00]} 46. h5 {[%emt 0:00:00]} Bd2 {[%emt 0:00:00]} 47. Kf5 {[%emt 0:00:00]} Ne3+ {[%emt 0:00:00]} 48. Ke4 {[%emt 0:00:00]} Ng4 {[%emt 0:00:00]} 49. Bd4+ {[%emt 0:00:00]} Kb4 {[%emt 0:00:00]} 50. Be6 {[%emt 0:00:00]} Nh6 {[%emt 0:00:00]} 51. Be3 {[%emt 0:00:00]} Bxe3 {[%emt 0:00:00]} 52. Kxe3 {[%emt 0:00:00]} Kc5 {[%emt 0:00:00]} 53. Kf4 {[%emt 0:00:00]} Kd6 {[%emt 0:00:00]} 54. Bc4 {[%emt 0:00:00]} 1-0

[Event "SWE-ch -50 2018"]
[Site "Ronneby"]
[Date "2018.07.01"]
[Round "2"]
[White "Wedin, Svante"]
[Black "Gamback, Bjorn"]
[Result "0-1"]
[ECO "B28"]
[WhiteElo "1992"]
[BlackElo "2108"]
[Annotator "NA"]
[PlyCount "66"]
[EventDate "2018.06.30"]
[EventType "tourn"]
[EventCountry "SWE"]
[SourceTitle "playchess.com"]
[Source "ChessBase"]
[SourceQuality "1"]
[TimeControl "40/5400+30:1800+30"]

1. e4 {[%emt 0:00:00]} c5 {[%emt 0:10:36]} 2. Nf3 {[%emt 0:02:30]} a6 {[%emt 0:06:42]} 3. d4 {[%emt 0:00:57]} cxd4 {[%emt 0:02:24]} 4. Nxd4 {[%emt 0:00:09]} Nf6 {[%emt 0:00:21]} 5. Nc3 {[%emt 0:00:44]} e5 {[%emt 0:00:12]} 6. Nb3 {[%emt 0:02:34]} Bb4 {[%emt 0:02:25] LiveBook: 58 Games} 7. Qd3 {[%emt 0:09:39]} O-O {[%emt 0:08:09] B28: Sicilian: 2 Nf3 a6 (O'Kelly Variation)} 8. Bd2 {[%emt 0:02:12]} b5 {[%emt 0:02:18]} (8... Bxc3 9. Bxc3 d5 10. exd5 Bg4 11. f3 e4 12. Bxf6 Qxf6 13. Qd4 exf3 14. Qxg4 Re8+ 15. Kd1 {1-0 (56) Quirhuayo Chumbe,G (2300)-Cori Tello,D (2413) Montcada 2017}) 9. O-O-O {[%emt 0:17:28]} Bb7 {[%emt 0:02:14]} 10. f3 {[%emt 0:00:33]} Be7 $146 {[%emt 0:03:42]} ({Predecessor:} 10... Qc7 11. a3 Bxc3 12. Qxc3 Nc6 13. g4 d5 14. g5 d4 15. Qd3 {0-1 (34) Bojdol,R (2060)-Orzech,D (2224) Wisla 2000}) 11. g4 {[%emt 0:10:38]} d5 {[%emt 0:21:43]} (11... b4 $1 $11 {bleibt in der Remisbreite.} 12. Nd5 Nxd5 13. exd5 Qc7) 12. Nxd5 {[%emt 0:07:46]} Nxd5 {[%emt 0:06:45]} 13. exd5 {[%emt 0:06:22]} ({Günstiger ist} 13. Na5 $14) 13... Qxd5 {[%emt 0:01:42]} 14. Qxd5 {[%emt 0:01:08]} Bxd5 {[%emt 0:00:08]} 15. Bg2 {[%emt 0:00:31]} Nc6 {[%emt 0:02:46]} 16. Be3 $15 {[%emt 0:04:15]} Rfd8 {[%emt 0:06:51]} 17. Rxd5 {[%emt 0:02:59]} Rxd5 {[%emt 0:00:06]} 18. f4 {[%emt 0:11:13]} Rad8 {[%emt 0:00:57]} 19. Bxd5 {[%emt 0:02:35]} Rxd5 {[%emt 0:00:06]} 20. fxe5 {[%emt 0:00:56]} Nxe5 {[%emt 0:00:54]} 21. h3 {[%emt 0:00:56]} Nc4 {[%emt 0:01:07]} 22. Bf4 {[%emt 0:00:59]} f5 {[%emt 0:03:24]} 23. g5 {[%emt 0:02:03]} Kf7 {[%emt 0:01:43]} 24. Re1 {[%emt 0:01:58]} Nd6 {[%emt 0:03:26]} 25. Rd1 {[%emt 0:04:22]} Rxd1+ {[%emt 0:06:43]} 26. Kxd1 {[%emt 0:00:03]} Nc4 {[%emt 0:00:04]} 27. Bc1 {[%emt 0:01:57]} Kg6 {[%emt 0:00:59]} 28. h4 {[%emt 0:00:02]} Kh5 {[%emt 0:00:32]} 29. Nd4 {[%emt 0:00:07]} Kg4 {[%emt 0:00:33]} 30. Ke2 {[%emt 0:02:21]} Bd6 {[%emt 0:01:55]} 31. b3 {[%emt 0:02:40]} Ne5 {[%emt 0:00:19]} 32. Bd2 {[%emt 0:00:52]} g6 {[%emt 0:00:32]} 33. Be1 {[%emt 0:00:41]} f4 {[%emt 0:00:29]} 0-1

[Event "SWE-ch -50 2018"]
[Site "Ronneby"]
[Date "2018.07.01"]
[Round "2"]
[White "Eriksson, Mats"]
[Black "Cramling, Dan"]
[Result "0-1"]
[ECO "B08"]
[WhiteElo "1977"]
[BlackElo "2355"]
[Annotator "NA"]
[PlyCount "58"]
[EventDate "2018.06.30"]
[EventType "tourn"]
[EventCountry "SWE"]
[SourceTitle "playchess.com"]
[Source "ChessBase"]
[SourceQuality "1"]
[TimeControl "40/5400+30:1800+30"]

1. e4 {[%emt 0:00:00]} d6 {[%emt 0:00:00]} 2. d4 {[%emt 0:00:06]} Nf6 {[%emt 0:00:17]} 3. Nc3 {[%emt 0:00:57]} g6 {[%emt 0:00:34]} 4. Nf3 {[%emt 0:02:59]} Bg7 {[%emt 0:00:55]} 5. Be2 {[%emt 0:00:31]} O-O {[%emt 0:00:49]} 6. O-O {[%emt 0:02:05]} e6 {[%emt 0:01:14]} 7. Re1 {[%emt 0:06:07] B08: Pirc Defence: Classical System} Nc6 {[%emt 0:02:42] LiveBook: 33 Games} 8. Be3 {[%emt 0:09:34]} (8. h3 a6 9. a4 b6 10. Bg5 h6 11. Be3 Bb7 12. Qd2 Kh7 13. Bf1 Nb4 14. Bf4 e5 {1-0 (34) Salgado Lopez,I (2629)-Mchedlishvili,M (2604) Heraklio 2017}) 8... h6 {[%emt 0:02:06]} 9. h3 {[%emt 0:04:10]} b6 {[%emt 0:07:00]} 10. Qd2 Kh7 {[%emt 0:00:11]} 11. Rad1 {[%emt 0:04:40]} Bb7 {[%emt 0:03:56]} 12. Bf1 {[%emt 0:04:53]} Ne7 {[%emt 0:10:18]} 13. Bf4 {[%emt 0:05:54]} Nh5 $146 {[%emt 0:21:49]} ({Predecessor:} 13... a6 14. Bg3 b5 15. a3 Qd7 16. Bh2 Rad8 {1-0 (33) Bennett (2157)-Perrin,R (1797) ICCF email 2009}) 14. Bh2 {[%emt 0:06:33]} f5 {[%emt 0:00:38]} 15. Bd3 {[%emt 0:04:56]} Qd7 {[%emt 0:05:03]} 16. exf5 {[%emt 0:12:21]} exf5 {[%emt 0:04:10]} 17. Nh4 {[%emt 0:08:01] [#]} Bf6 $17 {[%emt 0:06:44]} 18. g4 {[%emt 0:12:49]} Bxh4 {[%emt 0:07:47]} 19. gxh5 {[%emt 0:00:35]} gxh5 {[%emt 0:05:05]} 20. Bg3 {[%emt 0:02:41]} Bg5 {[%emt 0:05:57]} 21. Qe2 {[%emt 0:01:28]} h4 {[%emt 0:01:15]} 22. Bf4 {[%emt 0:03:49]} Rg8 {[%emt 0:01:52]} 23. Kf1 {[%emt 0:00:17]} Kh8 {[%emt 0:02:58]} 24. Bxg5 Rxg5 25. f3 {[%emt 0:03:15]} Rg3 {[%emt 0:05:05]} 26. d5 {[%emt 0:02:03]} Nxd5 {[%emt 0:01:11]} 27. Nxd5 {[%emt 0:00:48]} Bxd5 {[%emt 0:00:17]} 28. Qd2 {[%emt 0:00:25]} Rxf3+ {[%emt 0:01:01]} 29. Kg1 {[%emt 0:00:11]} Qg7+ {[%emt 0:00:21]} 0-1

[Event "SWE-ch -50 2018"]
[Site "Ronneby"]
[Date "2018.07.01"]
[Round "2"]
[White "Andersson, Erik"]
[Black "Winfridsson, Hakan"]
[Result "0-1"]
[ECO "A00"]
[WhiteElo "1656"]
[BlackElo "2027"]
[Annotator "NA"]
[PlyCount "94"]
[EventDate "2018.06.30"]
[EventType "tourn"]
[EventCountry "SWE"]
[SourceTitle "playchess.com"]
[Source "ChessBase"]
[SourceQuality "1"]
[TimeControl "40/5400+30:1800+30"]

1. b4 {[%emt 0:00:00]} c6 {[%emt 0:00:12]} 2. e3 {[%emt 0:00:00]} d5 {[%emt 0:00:32]} 3. Nf3 {[%emt 0:00:26]} Bg4 {[%emt 0:00:54]} 4. Be2 {[%emt 0:00:35]} Nd7 {[%emt 0:00:42]} 5. d4 {[%emt 0:01:34]} e6 {[%emt 0:00:28]} 6. a3 {[%emt 0:04:42]} a5 {[%emt 0:02:50]} 7. c3 {[%emt 0:10:25]} (7. b5 $11 {remains equal.}) 7... Ngf6 {[%emt 0:02:47]} (7... axb4 $17 8. Qb3 Qb6) 8. Nbd2 {[%emt 0:00:57]} (8. b5 $11) 8... Be7 {[%emt 0:01:00]} (8... axb4 $17 9. cxb4 {[#]} Bxb4 $1 {[%mdl 512]}) 9. O-O {[%emt 0:03:20]} (9. Bb2 $11 {remains equal.}) 9... O-O {[%emt 0:03:01]} (9... axb4 $17 10. cxb4 {[#]} Bxb4 $1 {[%mdl 512]}) 10. Bb2 {[%emt 0:06:46]} h6 {[%emt 0:10:48]} 11. Qc2 {[%emt 0:15:10]} Qc7 {[%emt 0:04:44]} 12. Bd3 {[%emt 0:06:38]} Bxf3 {[%emt 0:20:05]} 13. Nxf3 {[%emt 0:01:22]} Bd6 {[%emt 0:07:15]} 14. h3 {[%emt 0:00:23]} Rfe8 {[%emt 0:00:49]} 15. Rfb1 {[%emt 0:09:20]} e5 {[%emt 0:05:37]} 16. dxe5 {[%emt 0:01:50]} Nxe5 {[%emt 0:00:08]} 17. Nxe5 {[%emt 0:00:14]} Bxe5 {[%emt 0:00:07]} 18. c4 $11 {[%emt 0:03:29]} axb4 {[%emt 0:01:20]} 19. axb4 {[%emt 0:01:10]} dxc4 {[%emt 0:03:13]} 20. Bxc4 {[%emt 0:01:37]} Rad8 {[%emt 0:01:03]} 21. Bxe5 {[%emt 0:02:10]} Qxe5 {[%emt 0:00:26]} 22. Rd1 {[%emt 0:00:57]} Ne4 {[%emt 0:02:51]} 23. Ra5 {[%emt 0:04:03]} Qe7 {[%emt 0:00:39]} 24. Rf5 {[%emt 0:05:40]} Rxd1+ {[%emt 0:01:50]} 25. Qxd1 {[%emt 0:00:16]} Nd6 {[%emt 0:00:02]} 26. Rf4 {[%emt 0:01:23]} Nxc4 {[%emt 0:00:11]} 27. Rxc4 {[%emt 0:00:10]} Rd8 {[%emt 0:00:09]} 28. Rd4 {[%emt 0:00:48]} Rxd4 {[%emt 0:00:12]} 29. Qxd4 {[%emt 0:00:02]} Kf8 {[%emt 0:01:02]} 30. Kf1 {[%emt 0:00:25]} f6 {[%emt 0:01:08]} 31. Ke2 {[%emt 0:01:35]} Ke8 {[%emt 0:00:25]} 32. Qc4 {[%emt 0:02:32]} Qf7 {[%emt 0:01:09]} 33. Qe4+ {[%emt 0:01:56]} Kd8 {[%emt 0:00:22]} 34. Qf4 {[%emt 0:01:18]} Kc8 {[%emt 0:01:56]} 35. Qg4+ {[%emt 0:00:36]} f5 {[%emt 0:00:22]} 36. Qd4 {[%emt 0:00:22]} Qd7 {[%emt 0:00:52]} 37. Qe5 {[%emt 0:01:59]} b6 {[%emt 0:01:22]} 38. Qc3 {[%emt 0:02:19]} Kb7 {[%emt 0:00:32]} 39. Qe5 {[%emt 0:00:32]} Ka6 {[%emt 0:01:21]} 40. f3 {[%emt 0:04:58]} Qf7 {[%emt 0:02:36]} 41. g4 {[%emt 0:35:37]} Qc4+ {[%emt 0:31:48]} 42. Kd2 {[%emt 0:00:00]} Qxb4+ {[%emt 0:00:00]} 43. Qc3 {[%emt 0:00:00]} Qxc3+ {[%emt 0:00:00]} 44. Kxc3 {[%emt 0:00:00]} fxg4 {[%emt 0:00:00]} 45. hxg4 {[%emt 0:00:00]} Kb5 {[%emt 0:00:00]} 46. e4 {[%emt 0:00:00]} Kc5 {[%emt 0:00:00]} 47. Kd3 {[%emt 0:00:00]} g6 {[%emt 0:00:00] Kd4+} 0-1

[Event "SWE-ch -50 2018"]
[Site "Ronneby"]
[Date "2018.07.03"]
[Round "4"]
[White "Rothen, Hakan"]
[Black "Winfridsson, Hakan"]
[Result "1-0"]
[ECO "D43"]
[WhiteElo "2291"]
[BlackElo "2007"]
[Annotator "NA"]
[PlyCount "81"]
[EventDate "2018.06.30"]
[EventType "tourn"]
[EventCountry "SWE"]
[SourceTitle "playchess.com"]
[Source "ChessBase"]
[SourceQuality "1"]
[TimeControl "40/5400+30:1800+30"]

1. d4 {[%emt 0:00:00]} d5 {[%emt 0:03:50]} 2. c4 {[%emt 0:04:05]} c6 {[%emt 0:00:05]} 3. Nf3 {[%emt 0:00:04]} Nf6 {[%emt 0:00:09]} 4. Nc3 {[%emt 0:00:10]} e6 {[%emt 0:00:08]} 5. Qd3 {[%emt 0:01:25]} Nbd7 {[%emt 0:10:49]} 6. e4 {[%emt 0:01:00]} dxe4 {[%emt 0:00:33]} 7. Nxe4 {[%emt 0:00:06]} Nxe4 {[%emt 0:00:15]} 8. Qxe4 {[%emt 0:00:06]} Nf6 {[%emt 0:00:32]} 9. Qc2 {[%emt 0:00:41]} c5 {[%emt 0:04:59]} 10. Bf4 {[%emt 0:09:31]} cxd4 {[%emt 0:03:50]} 11. O-O-O $11 {[%emt 0:00:21]} Bd6 {[%emt 0:04:36]} 12. Bxd6 {[%emt 0:01:20]} Qxd6 {[%emt 0:00:04]} 13. Rxd4 {[%emt 0:03:40]} Qc7 {[%emt 0:00:49]} 14. Bd3 {[%emt 0:07:26]} Bd7 {[%emt 0:01:07]} 15. Re1 {[%emt 0:00:11]} O-O-O {[%emt 0:02:42]} 16. Ne5 {[%emt 0:02:31]} Bc6 {[%emt 0:04:35]} 17. Rxd8+ {[%emt 0:00:42]} Rxd8 {[%emt 0:00:04]} 18. f4 {[%emt 0:02:27]} g6 {[%emt 0:03:32]} 19. g3 {[%emt 0:02:08]} Be8 {[%emt 0:01:23]} 20. b4 {[%emt 0:03:57]} Nd7 {[%emt 0:01:05]} 21. Nf3 {[%emt 0:04:50]} Nb8 {[%emt 0:10:05]} 22. a3 {[%emt 0:03:29]} Nc6 {[%emt 0:00:30]} 23. Qc3 {[%emt 0:00:23]} Kb8 {[%emt 0:05:57]} 24. Rd1 {[%emt 0:02:08]} Ne7 {[%emt 0:07:13]} 25. Rd2 {[%emt 0:08:50]} h5 {[%emt 0:06:18]} 26. Kb2 {[%emt 0:02:53]} Rc8 {[%emt 0:02:06]} 27. Qe5 {[%emt 0:03:25]} Nc6 {[%emt 0:01:20]} 28. Qxc7+ {[%emt 0:01:25]} Kxc7 {[%emt 0:00:51]} 29. Be4 {[%emt 0:02:04]} f6 {[%emt 0:06:18]} 30. Kc3 {[%emt 0:01:04]} Rd8 {[%emt 0:03:38]} 31. Rxd8 {[%emt 0:02:42]} Nxd8 {[%emt 0:00:52]} 32. Nh4 {[%emt 0:00:45]} f5 {[%emt 0:00:57]} 33. Bc2 {[%emt 0:00:21]} b6 {[%emt 0:02:55]} 34. Nf3 {[%emt 0:01:35]} Nf7 {[%emt 0:04:40]} 35. Kd4 {[%emt 0:02:02]} Kd6 {[%emt 0:00:56]} 36. Bb3 {[%emt 0:02:10]} g5 {[%emt 0:06:46]} 37. c5+ {[%emt 0:01:19]} bxc5+ {[%emt 0:00:12]} 38. bxc5+ {[%emt 0:00:05]} Ke7 {[%emt 0:00:19]} 39. fxg5 {[%emt 0:00:41]} e5+ {[%emt 0:00:26]} 40. Ke3 {[%emt 0:01:51]} e4 {[%emt 0:00:47]} 41. Bxf7 {[%emt 0:30:27]} 1-0